[Event "45th Guernsey Open 2019"]
[Site "Vale"]
[Date "2019.10.25"]
[Round "6.11"]
[White "Dennis, Nigel W"]
[Black "Hall, Alan"]
[Result "1/2-1/2"]
[ECO "C42"]
[WhiteElo "1768"]
[BlackElo "1684"]
[Annotator "NA RC"]
[PlyCount "78"]
[EventDate "2019.10.20"]
[EventType "swiss"]
[EventCountry "GCI"]
[SourceTitle "playchess.com"]
[Source "ChessBase"]
[SourceQuality "1"]
[TimeControl "40/6000+30:2400+30"]

1. e4 {[%emt 0:00:00]} e5 {[%emt 0:00:00]} 2. Nf3 {[%emt 0:00:00]} Nf6 {[%emt 0:00:00]} 3. Nxe5 {[%emt 0:00:19]} d6 {[%emt 0:00:00]} 4. Nf3 {[%emt 0:00:04]} Nxe4 {[%emt 0:00:09]} 5. Qe2 {[%emt 0:01:02]} Qe7 {[%emt 0:00:20]} 6. d3 {[%emt 0:00:12]} Nf6 {[%emt 0:00:09]} 7. Bg5 {[%emt 0:00:23]} Qxe2+ 8. Bxe2 Be7 {[%emt 0:02:04]} 9. Nc3 {[%emt 0:00:47]} Bd7 {[%emt 0:02:56]} 10. O-O {[%emt 0:02:45]} Nc6 {[%emt 0:05:32]} 11. Bxf6 {[%emt 0:05:46]} Bxf6 {[%emt 0:00:56]} 12. Nd5 {[%emt 0:00:21]} Bd8 {[%emt 0:01:33]} 13. Rfe1 {[%emt 0:02:04]} O-O {[%emt 0:01:59]} 14. d4 {[%emt 0:04:42]} Be6 {[%emt 0:06:21]} 15. Nf4 {[%emt 0:02:07]} Bf5 {[%emt 0:01:49]} 16. Bd3 {[%emt 0:00:13]} Bg4 {[%emt 0:06:13]} 17. c3 {[%emt 0:09:27]} Bxf3 {[%emt 0:03:17]} 18. gxf3 {[%emt 0:00:07]} Ne7 {[%emt 0:03:41]} 19. Re2 {[%emt 0:03:14]} c6 {[%emt 0:10:32]} 20. Rae1 {[%emt 0:01:40]} Ng6 {[%emt 0:11:03]} 21. Ng2 {[%emt 0:01:54]} Bf6 {[%emt 0:04:47]} 22. f4 {[%emt 0:05:19]} Rac8 {[%emt 0:04:54]} 23. f5 {[%emt 0:06:17]} Nh4 {[%emt 0:01:33]} 24. Nxh4 {[%emt 0:00:08]} Bxh4 {[%emt 0:00:08]} 25. Kg2 {[%emt 0:00:37]} a5 {[%emt 0:03:39]} 26. a4 {[%emt 0:04:24]} Bf6 {[%emt 0:01:20]} 27. f4 {[%emt 0:04:35]} Bh4 {[%emt 0:07:09]} 28. Rc1 {[%emt 0:03:34]} Rb8 {[%emt 0:01:27]} 29. Kf3 {[%emt 0:04:11]} h5 {[%emt 0:06:33]} 30. b3 {[%emt 0:02:44]} Rfd8 {[%emt 0:04:28]} 31. c4 {[%emt 0:03:14]} Rbc8 {[%emt 0:02:49]} 32. Bb1 {[%emt 0:03:32]} Bf6 {[%emt 0:02:03]} 33. Rd1 {[%emt 0:01:58]} Bh4 {[%emt 0:01:25]} 34. Rd3 {[%emt 0:03:12]} Bf6 {[%emt 0:03:18]} 35. d5 {[%emt 0:02:55]} c5 {[%emt 0:03:31]} 36. Rde3 {[%emt 0:01:59]} Kf8 {[%emt 0:01:09]} 37. h3 {[%emt 0:00:17]} Rd7 {[%emt 0:01:33]} 38. Re4 {[%emt 0:01:58]} Re7 {[%emt 0:03:47]} 39. Bc2 {[%emt 0:02:36]} Rcc7 {[%emt 0:01:42]} 1/2-1/2

[Event "45th Guernsey Open 2019"]
[Site "Vale"]
[Date "2019.10.26"]
[Round "7.2"]
[White "Pleasants, Allan J"]
[Black "Povah, Nigel E"]
[Result "0-1"]
[ECO "B30"]
[WhiteElo "2019"]
[BlackElo "2301"]
[Annotator "NA RC"]
[PlyCount "76"]
[EventDate "2019.10.20"]
[EventType "swiss"]
[EventCountry "GCI"]
[SourceTitle "playchess.com"]
[Source "ChessBase"]
[SourceQuality "1"]
[TimeControl "40/6000+30:2400+30"]

{[%evp 8,46,32,38,32767,31,25,28,18,4,12,8,5,-11,0,-1,12,-2,-8,-25,-18,-26,-16,-20,-20,-77,-69,32767,-69,-91,32767,-114,-98,-106,-28,-102,-104,-87,0,-139,-77]} 1. e4 {[%emt 0:00:00]} c5 {[%emt 0:00:00]} 2. Nf3 {[%emt 0:00:13]} Nc6 {[%emt 0:00:00]} 3. Bb5 {[%emt 0:01:21]} Nf6 {[%emt 0:00:14]} 4. Bxc6 {[%emt 0:01:19]} dxc6 {[%emt 0:00:06]} 5. d3 {[%emt 0:01:41]} Bg4 {[%emt 0:00:21]} 6. Nbd2 {[%emt 0:05:47] B30: Sicilian: 2...Nc6 3 Bb5, lines without ...g6} Nd7 {[%emt 0:00:51]} 7. h3 {[%emt 0:01:10]} Bh5 {[%emt 0:00:06]} 8. Nc4 {[%emt 0:04:05]} f6 {[%emt 0:02:00]} 9. Bf4 $146 {[%emt 0:09:01]} ({Predecessor:} 9. Qe2 e5 10. g4 Bf7 11. h4 Be7 12. Ne3 Nf8 {0-1 (52) Zeng,C (2504)-Wang,Y (2706) China 2013}) 9... e5 {[%emt 0:00:31]} 10. Bd2 {[%emt 0:00:19]} Qc7 {[%emt 0:00:24]} 11. a4 {[%emt 0:02:47]} Be7 {[%emt 0:09:54]} 12. Ne3 {[%emt 0:06:32]} Nf8 {[%emt 0:02:26]} 13. g4 {[%emt 0:01:44]} Bf7 {[%emt 0:00:37]} 14. Nf5 {[%emt 0:03:46]} Ne6 {[%emt 0:00:21]} 15. Nxe7 {[%emt 0:01:47]} Qxe7 {[%emt 0:00:07]} 16. Rg1 {[%emt 0:04:10]} O-O-O {[%emt 0:08:02]} 17. b3 {[%emt 0:04:52]} g5 {[%emt 0:05:06]} 18. Be3 {[%emt 0:14:01]} h5 {[%emt 0:02:36]} 19. Nd2 {[%emt 0:03:30]} hxg4 {[%emt 0:02:37]} 20. hxg4 {[%emt 0:00:53]} Qd7 {[%emt 0:11:07]} (20... Nd4 $17 21. Bxd4 cxd4) 21. Nc4 {[%emt 0:07:11]} (21. Qf3 $11 {keeps the balance.} Qe7 22. Rh1) 21... Rh3 {[%emt 0:04:22]} 22. Qd2 {[%emt 0:01:28]} b6 {[%emt 0:13:05]} (22... Nd4 $17 23. Bxd4 cxd4) 23. Rb1 {[%emt 0:08:48]} (23. a5 $1 $11 {keeps the balance.} Nd4 24. Bxd4 Qxd4 25. Ra4 Bxc4 {[%mdl 64] Pin} 26. axb6) 23... Nf4 $17 {[%emt 0:05:54]} (23... Nd4 $142 24. Bxd4 cxd4) 24. Bxf4 {[%emt 0:05:35]} gxf4 {[%emt 0:00:25]} 25. Qe2 {[%emt 0:06:05]} Bxc4 {[%emt 0:13:42]} 26. bxc4 {[%emt 0:00:44]} Rg8 {[%emt 0:01:19]} 27. a5 {[%emt 0:07:16]} Kc7 {[%emt 0:02:02]} 28. axb6+ {[%emt 0:00:32]} axb6 {[%emt 0:00:05]} 29. Ra1 {[%emt 0:01:05]} Kb7 {[%emt 0:01:56]} 30. Kd2 {[%emt 0:01:06]} Rh2 {[%emt 0:07:12]} 31. Ra3 {[%emt 0:02:20]} Qd4 {[%emt 0:01:57]} 32. Rf1 {[%emt 0:00:15]} Rd8 {[%emt 0:06:17]} 33. Kc1 {[%emt 0:00:08]} b5 {[%emt 0:01:16]} 34. cxb5 {[%emt 0:00:35]} cxb5 {[%emt 0:01:27]} 35. Qd2 {[%emt 0:01:15]} b4 {[%emt 0:00:35]} 36. Ra2 {[%emt 0:01:25]} Rhh8 {[%emt 0:01:41]} 37. Kd1 {[%emt 0:01:38]} f3 {[%emt 0:01:46]} 38. Qe3 {[%emt 0:01:05]} Qc3 0-1

[Event "45th Guernsey Open 2019"]
[Site "Vale"]
[Date "2019.10.26"]
[Round "7.3"]
[White "Bianco, Valerio"]
[Black "Baker, Chris W"]
[Result "1-0"]
[ECO "E46"]
[WhiteElo "2088"]
[BlackElo "2245"]
[Annotator "NA"]
[PlyCount "81"]
[EventDate "2019.10.20"]
[EventType "swiss"]
[EventCountry "GCI"]
[SourceTitle "playchess.com"]
[Source "ChessBase"]
[SourceQuality "1"]
[TimeControl "40/6000+30:2400+30"]

1. d4 {[%emt 0:00:00]} Nf6 {[%emt 0:00:00]} 2. c4 {[%emt 0:00:00]} e6 {[%emt 0:00:00]} 3. Nc3 {[%emt 0:00:00]} Bb4 {[%emt 0:00:00]} 4. e3 {[%emt 0:00:03]} O-O {[%emt 0:01:38]} 5. Bd2 {[%emt 0:00:08]} b6 {[%emt 0:00:30]} 6. Nf3 {[%emt 0:00:20]} Bb7 {[%emt 0:00:54]} 7. Bd3 {[%emt 0:00:16]} d5 {[%emt 0:07:19]} 8. O-O {[%emt 0:04:12]} Nbd7 {[%emt 0:06:16] [#]} (8... Bd6 $11 {keeps the balance.}) 9. Nxd5 $1 {[%emt 0:00:36] E52: Nimzo-Indian: Rubinstein: 4...0-0 5 Nf3 d5 6 Bd3 b6} Nxd5 {[%emt 0:01:55]} 10. cxd5 {[%emt 0:00:09]} Bxd2 {[%emt 0:00:34] [#]} 11. dxe6 $1 {[%emt 0:00:26]} Bxf3 {[%emt 0:00:37]} 12. gxf3 {[%emt 0:05:21]} Ne5 $146 {[%emt 0:12:55]} (12... Qg5+ $16 {was called for.} 13. Kh1 fxe6) ({Predecessor:} 12... Bb4 13. exd7 Qxd7 14. f4 Be7 15. Qf3 c5 16. Be4 Rac8 {1-0 (53) Rajesh,V (2389)-Muthaiah,A (2373) Hyderabad 2019}) 13. Be4 {[%emt 0:09:12]} ({Don't do} 13. e7 $6 Nxf3+ 14. Qxf3 Qxe7 $16) 13... Nc4 {[%emt 0:37:44] [#]} 14. Qe2 $1 {[%emt 0:11:08]} ({Don't do} 14. Bxa8 $6 Qxa8 15. Qe2 Qd5 $16) 14... b5 {[%emt 0:06:14]} 15. b3 {[%emt 0:10:09]} Bc3 {[%emt 0:02:09]} 16. Rac1 {[%emt 0:05:44]} ({Don't take} 16. bxc4 Bxa1 17. exf7+ (17. Rxa1 fxe6 18. cxb5 Rb8 $16) (17. Bxa8 Qxa8 18. exf7+ Rxf7 $18) 17... Rxf7) (16. Bxa8 Qxa8 17. bxc4) 16... Nd2 {[%emt 0:06:29]} 17. Rxc3 {[%emt 0:04:05]} Qg5+ {[%emt 0:02:47]} (17... Nxf1 $18 18. Bxa8 (18. Kxf1 Rb8 $18) 18... Qxa8 19. Kxf1 fxe6 20. Rxc7 a6) 18. Kh1 {[%emt 0:00:12]} Nxf1 {[%emt 0:01:04]} 19. Qxf1 {[%emt 0:07:01]} Rae8 {[%emt 0:02:28]} 20. Rc5 {[%emt 0:02:06]} Qf6 {[%emt 0:00:58]} 21. exf7+ $18 {[%emt 0:03:05]} (21. Qh3 $142 {[%csl Ge4][%cal Rh3h7]} h6 22. exf7+ (22. Rxc7 Rxe6 23. Kg2 a6 $14) 22... Rxf7 23. Bd5 (23. Rxb5 Rxe4 24. fxe4 Qxf2 $11)) 21... Rxf7 {[%emt 0:00:40]} 22. Rf5 {[%emt 0:02:35]} Qxf5 {[%emt 0:06:10]} 23. Bxf5 {[%emt 0:00:12]} Rxf5 {[%emt 0:00:05]} 24. f4 {[%emt 0:14:32]} c6 {[%emt 0:03:03]} 25. Qg2 {[%emt 0:01:40]} Re6 {[%emt 0:00:53]} 26. Qg4 {[%emt 0:06:00]} Ref6 {[%emt 0:00:45]} 27. h4 {[%emt 0:00:32]} b4 {[%emt 0:01:59]} 28. Qe2 {[%emt 0:02:39]} a5 {[%emt 0:01:40]} 29. Qc4+ {[%emt 0:03:20]} Kh8 {[%emt 0:00:12]} 30. Qa6 {[%emt 0:00:16]} h6 {[%emt 0:00:11]} 31. Qc8+ {[%emt 0:01:07]} Kh7 {[%emt 0:00:06]} 32. Qe8 {[%emt 0:01:47]} g5 {[%emt 0:02:13]} 33. fxg5 {[%emt 0:01:47]} hxg5 {[%emt 0:00:08]} 34. hxg5 {[%emt 0:00:37]} Rxg5 {[%emt 0:00:25]} 35. Qe7+ {[%emt 0:00:17]} Kg6 {[%emt 0:00:12]} 36. f4 {[%emt 0:00:34]} Rgf5 {[%emt 0:02:54]} 37. Kg2 {[%emt 0:00:35]} Rf7 {[%emt 0:01:23]} 38. Qe4 {[%emt 0:00:19]} R7f6 {[%emt 0:00:10]} 39. Kf3 {[%emt 0:01:01]} Kf7 {[%emt 0:00:15]} 40. Kg4 {[%emt 0:02:17]} Kg6 {[%emt 0:00:51]} 41. Qc2 {[%emt 0:44:03]} 1-0

[Event "45th Guernsey Open 2019"]
[Site "Vale"]
[Date "2019.10.26"]
[Round "7.4"]
[White "Wager, John D"]
[Black "Thurlow, Kevin J"]
[Result "1-0"]
[ECO "A43"]
[WhiteElo "2013"]
[BlackElo "2021"]
[Annotator "NA"]
[PlyCount "91"]
[EventDate "2019.10.20"]
[EventType "swiss"]
[EventCountry "GCI"]
[SourceTitle "playchess.com"]
[Source "ChessBase"]
[SourceQuality "1"]
[TimeControl "40/6000+30:2400+30"]

1. Nf3 {[%emt 0:00:00]} Nf6 {[%emt 0:00:00]} 2. d4 {[%emt 0:00:00]} c5 {[%emt 0:00:30]} 3. d5 {[%emt 0:00:13]} d6 {[%emt 0:00:24]} 4. Nc3 {[%emt 0:00:27]} Nbd7 {[%emt 0:00:24]} 5. g3 {[%emt 0:00:37]} g6 {[%emt 0:00:13]} 6. Bg2 {[%emt 0:00:18]} Bg7 {[%emt 0:00:07]} 7. O-O {[%emt 0:00:21]} O-O {[%emt 0:00:11]} 8. Re1 {[%emt 0:02:42]} a6 {[%emt 0:01:06] A49: 1 d4 Nf6 2 Nf3 g6 3 g3: Anti-King's Indian systems} 9. a4 {[%emt 0:00:22]} Rb8 {[%emt 0:01:35]} 10. h3 $146 {[%emt 0:00:48]} ({Predecessor:} 10. a5 b5 11. axb6 Nxb6 12. Nd2 Qc7 13. e4 e6 14. dxe6 fxe6 15. e5 dxe5 16. Qe2 Nfd5 17. Nde4 Nxc3 18. bxc3 Bb7 19. h4 Bd5 20. Ra5 Nc4 21. Rxc5 {1-0 (21) Cabrera Trujillo,J (2361)-Basualdo Almada,H (1805) Tenerife 2012}) 10... b5 {[%emt 0:00:39]} 11. axb5 {[%emt 0:00:31]} axb5 {[%emt 0:00:13]} 12. e4 {[%emt 0:01:05]} Qc7 {[%emt 0:05:09]} 13. Bf4 {[%emt 0:03:14]} b4 {[%emt 0:02:54]} 14. Nb1 {[%emt 0:04:24]} Nh5 {[%emt 0:02:26]} 15. Bc1 {[%emt 0:01:38]} e5 {[%emt 0:05:02]} 16. Nbd2 {[%emt 0:05:01]} c4 {[%emt 0:03:08]} 17. Qe2 {[%emt 0:08:35]} Nb6 {[%emt 0:04:39]} 18. Nf1 {[%emt 0:02:23]} Bd7 {[%emt 0:02:33]} 19. Ne3 {[%emt 0:04:56]} Rfc8 {[%emt 0:06:03]} 20. b3 {[%emt 0:08:53]} f5 {[%emt 0:04:14]} 21. Nd2 {[%emt 0:13:40]} cxb3 {[%emt 0:07:29]} 22. cxb3 {[%emt 0:03:24]} f4 {[%emt 0:01:53]} 23. Nef1 {[%emt 0:02:11]} (23. Nec4 $17 {was called for.}) 23... fxg3 {[%emt 0:05:18]} 24. fxg3 {[%emt 0:02:35]} Qc3 {[%emt 0:02:26]} 25. Ra7 {[%emt 0:03:54]} Nxg3 {[%emt 0:00:57]} 26. Nxg3 {[%emt 0:03:59]} Qxg3 {[%emt 0:00:18]} 27. Nf1 {[%emt 0:02:35]} Qxb3 {[%emt 0:01:31]} 28. Be3 {[%emt 0:00:42]} Rd8 {[%emt 0:04:12] [#]} 29. Bg5 $17 {[%emt 0:03:01]} (29. Bxb6 $1 $16 {is necessary to keep the advantage.} Rxb6 30. Rc1 (30. Qf2 $2 Rbb8 $19)) 29... Re8 {[%emt 0:05:51]} 30. Be3 {[%emt 0:01:49]} Re7 {[%emt 0:03:58]} 31. Nd2 {[%emt 0:07:07]} Qc2 {[%emt 0:01:55]} 32. Raa1 {[%emt 0:08:09]} Qc8 {[%emt 0:02:10]} 33. Rec1 {[%emt 0:00:35]} Qb7 {[%emt 0:00:56]} 34. Rab1 {[%emt 0:04:01]} Na4 {[%emt 0:04:05]} 35. Nc4 {[%emt 0:03:00]} Qa6 {[%emt 0:05:02]} 36. Bf1 {[%emt 0:01:32]} Bb5 {[%emt 0:14:12]} 37. Rxb4 {[%emt 0:00:50]} Rc8 {[%emt 0:11:42]} 38. Qe1 {[%emt 0:03:38]} Rec7 {[%emt 0:01:16]} 39. Nxd6 {[%emt 0:02:02]} Rxc1 {[%emt 0:01:32]} 40. Bxc1 {[%emt 0:00:14]} Bxf1 {[%emt 0:00:46]} 41. Nxc8 {[%emt 0:40:47]} Bxh3 {[%emt 0:01:01]} 42. Ne7+ {[%emt 0:00:00]} Kf7 {[%emt 0:00:59]} 43. Nc6 {[%emt 0:00:00]} Bf8 {[%emt 0:03:29]} 44. Rb3 {[%emt 0:00:00]} Qc8 {[%emt 0:02:24]} 45. Qh4 {[%emt 0:00:00]} Bd7 {[%emt 0:03:38]} 46. Qxh7+ {[%emt 0:00:00]} 1-0

[Event "45th Guernsey Open 2019"]
[Site "Vale"]
[Date "2019.10.26"]
[Round "7.6"]
[White "Havenaar, Jan"]
[Black "Prins, Jan"]
[Result "0-1"]
[ECO "B10"]
[WhiteElo "2091"]
[BlackElo "1987"]
[Annotator "NA"]
[PlyCount "88"]
[EventDate "2019.10.20"]
[EventType "swiss"]
[EventCountry "GCI"]
[SourceTitle "playchess.com"]
[Source "ChessBase"]
[SourceQuality "1"]
[TimeControl "40/6000+30:2400+30"]

1. Nc3 {[%emt 0:00:46]} c6 {[%emt 0:00:00]} 2. e4 {[%emt 0:00:52]} d5 {[%emt 0:00:02]} 3. Nf3 {[%emt 0:00:17]} d4 {[%emt 0:00:06]} 4. Ne2 {[%emt 0:00:38]} c5 {[%emt 0:00:04]} 5. Ng3 {[%emt 0:00:14]} Nc6 {[%emt 0:01:43]} (5... a6 6. a4 Nc6 7. Bc4 e6 8. O-O Bd6 9. d3 Qc7 10. Ne1 e5 {½-½ (10) Sanchez,S (2418)-Escobar Medina,A (2270) Medellin 2019}) 6. Bc4 {[%emt 0:01:46] B11: Caro-Kann: Two Knights Variation} e6 {[%emt 0:00:18]} 7. O-O {[%emt 0:00:26]} Nf6 {[%emt 0:05:36]} 8. d3 {[%emt 0:00:08]} Be7 {[%emt 0:03:12]} 9. h3 $146 {[%emt 0:11:56]} ({Predecessor:} 9. a3 Qc7 10. Ne1 O-O 11. Qe2 a6 12. f4 b5 13. Ba2 {½-½ (67) Bennett,R (1802)-Clayton,T (1740) Coventry 2015}) 9... O-O {[%emt 0:05:02]} 10. Ne1 {[%emt 0:02:01]} Na5 {[%emt 0:00:16]} 11. f4 {[%emt 0:00:34]} Nxc4 {[%emt 0:00:05]} 12. dxc4 {[%emt 0:00:08]} b6 {[%emt 0:03:33]} 13. Nd3 {[%emt 0:01:39]} Bb7 {[%emt 0:00:59]} 14. Re1 {[%emt 0:00:16]} Qc7 {[%emt 0:02:44]} 15. Qe2 {[%emt 0:05:48]} Ba6 {[%emt 0:04:12]} 16. b3 {[%emt 0:00:32]} b5 {[%emt 0:00:19]} 17. Ne5 {[%emt 0:05:56]} Rab8 {[%emt 0:03:15]} 18. cxb5 {[%emt 0:04:02]} Bxb5 {[%emt 0:00:59]} 19. Qf3 {[%emt 0:04:49]} c4 {[%emt 0:04:19]} 20. c3 {[%emt 0:13:20]} dxc3 {[%emt 0:25:30]} 21. Qxc3 {[%emt 0:04:30]} Ba6 {[%emt 0:00:52]} 22. Re2 {[%emt 0:05:13]} Bb4 {[%emt 0:00:59]} 23. Qc2 {[%emt 0:00:38]} c3 {[%emt 0:02:36]} 24. Re1 {[%emt 0:00:44]} Bd6 {[%emt 0:03:14]} 25. Nd3 {[%emt 0:06:21]} Bxd3 {[%emt 0:00:29]} 26. Qxd3 {[%emt 0:00:04]} Rfd8 {[%emt 0:00:23]} ({Much less strong is} 26... Bxf4 27. Bxf4 Qxf4 28. Qxc3 $15) 27. Qc2 {[%emt 0:02:55]} e5 {[%emt 0:03:01]} 28. f5 {[%emt 0:03:08]} Bc5+ $17 {[%emt 0:00:31]} 29. Kh2 {[%emt 0:02:13]} Rbc8 {[%emt 0:02:09]} 30. Bg5 {[%emt 0:04:05]} Rd6 {[%emt 0:04:45]} 31. Rad1 {[%emt 0:01:17]} Bd4 {[%emt 0:00:11]} 32. Ne2 {[%emt 0:12:59]} Ne8 {[%emt 0:05:36]} 33. Nxd4 {[%emt 0:07:30]} Rxd4 {[%emt 0:00:38]} 34. Be3 {[%emt 0:00:09]} Rxd1 {[%emt 0:04:22]} 35. Rxd1 {[%emt 0:00:10]} Nf6 {[%emt 0:00:42]} 36. Kg3 {[%emt 0:01:00]} g6 {[%emt 0:01:06]} 37. fxg6 {[%emt 0:00:48]} fxg6 {[%emt 0:00:34]} 38. Kf3 {[%emt 0:02:06]} Qc6 {[%emt 0:00:24]} 39. Bg5 {[%emt 0:03:40]} Rf8 {[%emt 0:01:20]} 40. Bxf6 {[%emt 0:00:22]} Rxf6+ {[%emt 0:00:06]} 41. Kg3 {[%emt 0:40:03]} Rf8 {[%emt 0:43:04]} 42. Rd5 {[%emt 0:00:46]} Qf6 {[%emt 0:00:19]} 43. Kh2 {[%emt 0:01:38]} Qf4+ {[%emt 0:00:06]} 44. g3 Qf2+ 0-1

[Event "45th Guernsey Open 2019"]
[Site "Vale"]
[Date "2019.10.26"]
[Round "7.7"]
[White "Heppell, Ian N"]
[Black "Goris, Ton"]
[Result "1-0"]
[ECO "C01"]
[WhiteElo "1995"]
[BlackElo "1913"]
[Annotator "NA"]
[PlyCount "52"]
[EventDate "2019.10.20"]
[EventType "swiss"]
[EventCountry "GCI"]
[SourceTitle "playchess.com"]
[Source "ChessBase"]
[SourceQuality "1"]
[TimeControl "40/6000+30:2400+30"]

{[%evp 8,31,8,7,25,22,41,9,33,23,22,9,54,40,48,39,47,45,164,175,156,160,217,215,222,267]} 1. e4 {[%emt 0:01:29]} e6 {[%emt 0:00:00]} 2. d4 {[%emt 0:00:23]} d5 {[%emt 0:00:00]} 3. exd5 {[%emt 0:00:05]} exd5 {[%emt 0:00:00]} 4. Nf3 {[%emt 0:00:06]} Bd6 {[%emt 0:00:49]} 5. c4 {[%emt 0:00:40]} c6 {[%emt 0:12:38]} 6. Nc3 {[%emt 0:02:28]} Ne7 {[%emt 0:04:46]} 7. Bg5 {[%emt 0:02:14]} (7. c5 $5 {[%cal Rc5d6]} Bc7 8. Bd3 $14) 7... f6 {[%emt 0:00:32]} 8. Be3 {[%emt 0:01:05]} O-O {[%emt 0:00:38]} 9. Bd3 {[%emt 0:03:12]} Be6 {[%emt 0:05:59]} (9... dxc4 $11 10. Bxc4+ Kh8) 10. c5 {[%emt 0:13:33]} Bc7 {[%emt 0:01:06]} 11. Qc2 {[%emt 0:00:16]} g6 {[%emt 0:00:41]} 12. h4 {[%emt 0:04:07]} Qd7 {[%emt 0:07:11]} (12... Na6 $14) 13. h5 {[%emt 0:02:45]} Bf5 {[%emt 0:00:14]} 14. hxg6 {[%emt 0:02:50]} hxg6 {[%emt 0:01:09]} 15. O-O-O {[%emt 0:06:25]} Bxd3 {[%emt 0:01:31]} (15... Na6 $16 {was called for.} 16. a3 Rf7) 16. Qxd3 $18 {[%emt 0:02:12]} ({Less strong is} 16. Rxd3 Na6 $14) 16... Qf5 {[%emt 0:00:25]} 17. Qd2 {[%emt 0:02:18]} g5 {[%emt 0:08:06]} 18. Rh5 {[%emt 0:01:08]} Bf4 {[%emt 0:04:35]} 19. Bxf4 {[%emt 0:19:58]} Qxf4 {[%emt 0:00:09]} 20. Qxf4 {[%emt 0:00:04]} gxf4 {[%emt 0:00:06]} 21. Rdh1 {[%emt 0:01:57]} Kf7 {[%emt 0:13:44]} 22. Ne2 {[%emt 0:02:23]} Ng6 {[%emt 0:08:35]} 23. Rh7+ {[%emt 0:02:11]} Ke6 {[%emt 0:00:05]} 24. Rg7 {[%emt 0:01:23]} Kf5 {[%emt 0:04:43]} 25. Rh5+ {[%emt 0:00:33]} Kg4 {[%emt 0:00:05]} 26. Rh6 {[%emt 0:00:58]} Kf5 1-0

[Event "45th Guernsey Open 2019"]
[Site "Vale"]
[Date "2019.10.26"]
[Round "7.9"]
[White "Van Dijk, Bram"]
[Black "Van den Boogaart, Jan Maarten"]
[Result "0-1"]
[ECO "B23"]
[WhiteElo "1982"]
[BlackElo "2039"]
[Annotator "NA"]
[PlyCount "72"]
[EventDate "2019.10.20"]
[EventType "swiss"]
[EventCountry "GCI"]
[SourceTitle "playchess.com"]
[Source "ChessBase"]
[SourceQuality "1"]
[TimeControl "40/6000+30:2400+30"]

1. e4 {[%emt 0:00:00]} c5 {[%emt 0:00:00]} 2. Nc3 {[%emt 0:00:00]} Nc6 {[%emt 0:00:01]} 3. f4 {[%emt 0:00:04]} g6 {[%emt 0:01:28]} 4. Nf3 {[%emt 0:01:19]} Bg7 {[%emt 0:00:09]} 5. Bc4 {[%emt 0:01:42]} e6 {[%emt 0:02:11]} 6. O-O {[%emt 0:01:03]} Nge7 {[%emt 0:00:58]} 7. d3 {[%emt 0:02:39]} O-O {[%emt 0:02:37]} 8. a3 {[%emt 0:03:24]} b6 {[%emt 0:08:00]} 9. Qe1 {[%emt 0:02:48]} Bb7 {[%emt 0:04:07]} 10. Qh4 {[%emt 0:07:27]} (10. Bb3 $11 {remains equal.}) 10... Nd4 {[%emt 0:03:57]} 11. Nxd4 {[%emt 0:00:31]} cxd4 {[%emt 0:10:24]} 12. Ne2 {[%emt 0:02:33]} d5 {[%emt 0:01:24]} 13. exd5 {[%emt 0:00:10]} Bxd5 {[%emt 0:09:40]} 14. b3 {[%emt 0:22:47]} Bc6 {[%emt 0:15:01]} 15. a4 {[%emt 0:03:42]} Qd7 {[%emt 0:00:54]} 16. Bb5 {[%emt 0:15:29]} Nf5 {[%emt 0:03:25]} 17. Qf2 $19 {[%emt 0:02:02]} Ne3 {[%emt 0:09:01]} 18. Nxd4 {[%emt 0:05:54]} Nxf1 {[%emt 0:07:25]} 19. Nxc6 {[%emt 0:06:06]} Bxa1 {[%emt 0:00:27]} 20. Ba3 {[%emt 0:00:10]} Kh8 {[%emt 0:06:24]} 21. Kxf1 {[%emt 0:06:12]} Qc7 {[%emt 0:04:02]} 22. d4 {[%emt 0:09:32]} a6 {[%emt 0:01:27]} 23. Qh4 {[%emt 0:00:20]} f6 {[%emt 0:05:21]} 24. Be7 {[%emt 0:04:43]} Kg7 {[%emt 0:00:16]} 25. Qg4 {[%emt 0:06:17]} axb5 {[%emt 0:02:30]} 26. axb5 {[%emt 0:00:07]} f5 {[%emt 0:02:35]} 27. Qh4 {[%emt 0:00:47]} Rf7 {[%emt 0:00:36]} 28. Bg5 {[%emt 0:00:19]} h5 {[%emt 0:00:20]} 29. Qe1 {[%emt 0:00:45]} Bb2 {[%emt 0:00:37]} 30. Qxe6 {[%emt 0:00:28]} Qd7 {[%emt 0:01:18]} 31. Qc4 {[%emt 0:01:03]} Re8 {[%emt 0:01:31]} 32. d5 {[%emt 0:03:12]} Re4 {[%emt 0:00:58]} 33. Qd3 {[%emt 0:00:10]} Bf6 {[%emt 0:00:29]} 34. Bxf6+ {[%emt 0:01:14]} Rxf6 {[%emt 0:00:13]} 35. Ne5 {[%emt 0:00:11]} Rxf4+ {[%emt 0:01:53]} 36. Kg1 {[%emt 0:00:08]} Qd6 {[%emt 0:00:34]} 0-1